Cogmind - Beta 15 @@@ ROGUE MODE // 2025.07.19 @ 20:21:01 Player: Sunvar Result: Destroyed by D-53 Grenadier with Mini Grenade Launcher Performance ------------- Evolutions (0) 0 Regions Visited (2) 400 Robots Destroyed (18) 90 Value Destroyed (313) 313 Prototype IDs (0) 0 Alien Tech Used (0) 0 Bonus (0) 0 TOTAL SCORE: 803 Bonus ------- None Cogmind --------- Core Integrity 0/250 Matter 289/300 Energy 249/250 System Corruption 0% Temperature Cool (0) Movement Treading (160) Location -10/Mines Parts ------- > --- POWER (1) -------- Ion Engine > --- PROPULSION (2) --- Light Treads Light Treads > --- UTILITY (2) ------ Medium Storage Unit Improved Targeting Computer > --- WEAPON (2) ------- Light Assault Rifle > --- INVENTORY (10) --- Improved Ion Engine Light Nuclear Core Armored Wheel Armored Wheel Heat Sink High-capacity Matter Pod (85) Peak State ------------ > --- POWER ------------ Improved Ion Engine > --- PROPULSION ------- Aluminum Leg Aluminum Leg > --- UTILITY ---------- Medium Storage Unit Improved Targeting Computer > --- WEAPON ----------- Assault Rifle Light Assault Rifle > --- INVENTORY -------- Ion Engine Light Ion Engine Light Ion Engine Light Treads Light Treads Wheel Compact Wheel High-capacity Matter Pod Assault Rifle Light Assault Rifle [Rating: 10] Favorites ----------- Power Ion Engine Engine Ion Engine Propulsion Aluminum Leg Treads Light Treads Leg Aluminum Leg Utility Improved Targeting Computer Storage Medium Storage Unit Processor Improved Targeting Computer Weapon Assault Rifle Energy Gun Small Laser Ballistic Gun Assault Rifle Build | -11 -10 -10 ------- Run | Yrd Mat Min Slots Evolved . | . . . Power . | . . . Propulsion . | . . . Utility . | . . . Weapon . | . . . Parts Attached 13 | . 7 6 Power 2 | . 1 1 Engine 2 | . 1 1 Core . | . . . Reactor . | . . . Propulsion 5 | . 2 3 Treads 3 | . . 3 Leg 2 | . 2 . Wheel . | . . . Hover . | . . . Flight . | . . . Utility 3 | . 3 . Device . | . . . Storage 2 | . 2 . Processor 1 | . 1 . Hackware . | . . . Protection . | . . . Artifact . | . . . Weapon 3 | . 1 2 Energy Gun . | . . . Energy Cannon . | . . . Ballistic Gun 3 | . 1 2 Ballistic Cannon . | . . . Launcher . | . . . Special Weapon . | . . . Impact Weapon . | . . . Slashing Weapon . | . . . Piercing Weapon . | . . . Special Melee Weapon . | . . . Unidentified Prototypes . | . . . Parts Lost 7 | . . 7 Power 1 | . . 1 Propulsion 3 | . . 3 Utility . | . . . Weapon 3 | . . 3 Highest Loss Streak 5 | . . 5 To Critical Strikes . | . . . Average Backups 8 | . 8 7 Power 1 | . 1 2 Propulsion 4 | . 4 3 Utility 1 | . 1 1 Weapon 1 | . 1 . Tool/Special . | . . . Unused Backups 20 | . 12 8 Power 5 | . 3 2 Propulsion 8 | . 5 3 Utility 4 | . 2 2 Weapon 3 | . 2 1 Tool/Special . | . . . Average Slot Usage (%) 97 | . 97 97 Engine 13 | . 14 12 Treads 8 | . . 22 Leg 19 | . 28 4 Storage 14 | . 14 14 Processor 12 | . 11 14 Energy Gun 3 | . 5 . Ballistic Gun 24 | . 22 27 Peak Build Rating 10 | . 10 10 Average Rating 8 | . 8 8 On Entrance 7 | 6 6 10 Naked Turns . | . . . Heaviest Build 20 | 13 20 20 Greatest Support 40 | 20 20 40 Greatest Overweight (x) . | . . . Average Overweight (x) . | . . . Largest Inventory Capacity 10 | . 10 10 Average Capacity 9 | . 9 10 Most Carried 10 | . 10 10 Average Carried 8 | . 8 7 Final Capacity 10 | 8 10 10 Final Carried 10 | 6 10 6 Class Distribution -------------------- 100% | Mutant Dominant Class ---------------- Mutant | -10/Materials Mutant | -10/Mines Resources | -11 -10 -10 ----------- Run | Yrd Mat Min Matter Collected 659 | 170 323 166 Remotely . | . . . Salvage Created 477 | . 355 122 Parts 35 | . 25 10 Haulers Intercepted 2 | . 2 . Recyclers Shooed 1 | . 1 . Parts Field Recycled . | . . . Retrieved Matter . | . . . Parts Self-Destructed . | . . . Prevented . | . . . Kills | -11 -10 -10 ------- Run | Yrd Mat Min Combat Hostiles Destroyed 14 | . 9 5 Guns 14 | . 9 5 Classes Destroyed 5 | . 5 . Tunneler 1 | . 1 . Hauler 2 | . 2 . Watcher 1 | . 1 . Swarmer 9 | . 6 3 Grunt 5 | . 3 2 Best Kill Streak 3 | . 3 3 Combat Bots Only 3 | . 3 3 Max Kills in Single Turn 2 | . 2 1 Gunslinging 1 | . 1 . Exploded . | . . . Melee . | . . . Uniques/NPCs Destroyed . | . . . Combat | -11 -10 -10 -------- Run | Yrd Mat Min Hostile Shots Fired 111 | . 32 79 Missed 26 | . 8 18 Hits 85 | . 24 61 Projectile 85 | . 24 61 AOE 8 | . . 8 Critical Strikes 1 | . . 1 Damage Taken 1229 | . 268 961 Core 282 | . 69 213 Absorbed by Shields . | . . . Core Remaining (%) 100 | 100 . . Volleys Fired 76 | . 48 28 Largest 2 | . 2 2 Hottest 60 | . 60 40 Shots Fired 150 | . 95 55 Gun 150 | . 95 55 Cannon . | . . . Launcher . | . . . Special . | . . . Kinetic 138 | . 83 55 Thermal 12 | . 12 . Explosive . | . . . Electromagnetic . | . . . Robot Hit Streak 12 | . 12 9 Robot Miss Streak 3 | . 3 2 Penetration Max . | . . . Secondary Targets 2 | . 1 1 Max Gunslinging Chain 1 | . 1 1 Shots Hit Robots 104 | . 64 40 Core Hits 36 | . 25 11 Critical Kills . | . . . Critical Parts Destroyed . | . . . Critical Strikes . | . . . Melee Attacks . | . . . Impact . | . . . Slashing . | . . . Piercing . | . . . Sneak Attacks . | . . . Combat Hostiles . | . . . Follow-up Attacks . | . . . Damage Inflicted 1133 | . 720 413 Guns 1127 | . 714 413 Cannons . | . . . Explosions . | . . . Melee . | . . . Ramming 6 | . 6 . Kinetic 1041 | . 628 413 Thermal 86 | . 86 . Explosive . | . . . Electromagnetic . | . . . Impact . | . . . Slashing . | . . . Piercing . | . . . Highest Corruption . | . . . Average Corruption . | . . . Corruption Purged . | . . . Corruption Blocked . | . . . Overload Shots . | . . . Overflow Damage . | . . . Projectiles . | . . . Explosions . | . . . Melee . | . . . Knockbacks . | . . . Impact . | . . . Kinetic . | . . . Secondary . | . . . Self-Inflicted Damage . | . . . Shots . | . . . Rammed . | . . . Targets Rammed 1 | . 1 . Kicked 1 | . 1 . Crushed . | . . . Highest Temperature 37 | . 23 37 Average Temperature 7 | . 6 9 Received Heat Transfer 384 | . 90 294 Siege Activations . | . . . Martial Activations . | . . . Shielding Activations . | . . . Robots Disrupted . | . . . Combat Hostiles . | . . . Robots Corrupted . | . . . Combat Hostiles . | . . . Parts Fried . | . . . Impact Corruptions . | . . . Robots Melted . | . . . Combat Hostiles . | . . . Parts Melted . | . . . Heat Transferred 200 | . 200 . Parts Sabotaged . | . . . Parts Stolen . | . . . Parts Stripped . | . . . Power Chain Reactions . | . . . Alert | -11 -10 -10 ------- Run | Yrd Mat Min Maximum Alert Level . | . . . Low Security (%) 100 | . 100 100 Level 1 . | . . . Level 2 . | . . . Level 3 . | . . . Level 4 . | . . . Level 5 . | . . . High Security . | . . . Max Security . | . . . Peak Influence 159 | . 159 68 Initial 18 | . . 18 Average 41 | . 60 9 Influence Increases 405 | . 285 120 Destroy 0b10 Robot/C 280 | . 180 100 Destroy 0b10 Robot/NC 20 | . 20 . Destroy Leader 66 | . 46 20 Successful Hack 9 | . 9 . Lose Combat Pursuer 30 | . 30 . Influence Decreases 405 | . 237 168 Entered New Map 30 | . . 30 Time Decay 303 | . 213 90 Lost Part 48 | . . 48 Purge Threat 24 | . 24 . Squads Dispatched 1 | . 1 . Investigation . | . . . Extermination . | . . . Reinforcement 1 | . 1 . Assault . | . . . Garrison . | . . . Intercept . | . . . Searches Triggered . | . . . Construction Impeded . | . . . Haulers Reinforced . | . . . Active Scanning Responses . | . . . Cargo Convoy Interrupts . | . . . Stealth | -11 -10 -10 --------- Run | Yrd Mat Min Distress Signals 1 | . 1 . Communications Jammed . | . . . Distress Signals . | . . . Times Spotted 26 | . 19 7 Peak Tracking Total 5 | . 5 4 Tactical Retreats 1 | . 1 . Traps | -11 -10 -10 ------- Run | Yrd Mat Min Traps Triggered . | . . . Indirectly . | . . . Trap Hack Attempts . | . . . Triggered . | . . . Disarmed . | . . . Reprogrammed . | . . . Reused . | . . . Traps Extracted . | . . . Installed . | . . . Triggered . | . . . Machines | -11 -10 -10 ---------- Run | Yrd Mat Min Machines Disabled . | . . . Max in Single Turn . | . . . Machines Repaired . | . . . Machines Dismantled . | . . . Machines Sabotaged . | . . . Overloaded Fab Kills . | . . . Hacking | -11 -10 -10 --------- Run | Yrd Mat Min Machines Accessed 6 | . 6 . Terminals 6 | . 6 . Fabricators . | . . . Repair Stations . | . . . Recycling Units . | . . . Scanalyzers . | . . . Garrison Access . | . . . Total Hacks 17 | . 17 . Successful 12 | . 12 . Failed 5 | . 5 . Catastrophic 2 | . 2 . Database Lockouts . | . . . Manual 10 | . 10 . Terminals 17 | . 17 . Fabricators . | . . . Repair Stations . | . . . Recycling Units . | . . . Scanalyzers . | . . . Garrison Access . | . . . Terminal Hacks 4 | . 4 . Robot Analysis 1 | . 1 . Unreport Threat 1 | . 1 . Locate Traps 2 | . 2 . Fabricator Hacks . | . . . Repair Station Hacks . | . . . Recycling Unit Hacks . | . . . Scanalyzer . | . . . Garrison Access Hacks . | . . . Unauthorized Hacks 8 | . 8 . Terminals 8 | . 8 . Botnet 3 | . 3 . Skim 5 | . 5 . Fabricators . | . . . Repair Stations . | . . . Recycling Units . | . . . Scanalyzers . | . . . Garrison Access . | . . . Data Cores Recovered . | . . . Used . | . . . Hacking Detections 5 | . 5 . Full Trace Events . | . . . Feedback Events . | . . . Feedback Blocked . | . . . Robot Schematics Acquired . | . . . Robots Built . | . . . Authchips . | . . . Time . | . . . Total Robot Build Rating . | . . . Part Schematics Acquired . | . . . Parts Built . | . . . Authchips . | . . . Time . | . . . Total Part Build Rating . | . . . Parts Repaired . | . . . Time . | . . . Parts Recycled . | . . . Recycled Matter . | . . . Retrieved Matter . | . . . Retrieved Components . | . . . Parts Scanalyzed . | . . . Part Schematics Acquired . | . . . Parts Damaged . | . . . Bothacking | -11 -10 -10 ------------ Run | Yrd Mat Min Used RIF Installer . | . . . Robots Hacked . | . . . Non-combat . | . . . Combat . | . . . Robot Hacks Applied . | . . . Relay Couplers Released . | . . . Fabnet Peak Effective % . | . . . Robots Rewired . | . . . Allies Hacked . | . . . Hacks Repelled . | . . . Allies | -11 -10 -10 -------- Run | Yrd Mat Min Total Allies . | . . . Largest Group . | . . . Highest-Rated Group . | . . . Highest-Rated Ally . | . . . Total Orders . | . . . Ally Attacks . | . . . Total Damage . | . . . Kills . | . . . Allies Corrupted . | . . . Allies Melted . | . . . Intel | -11 -10 -10 ------- Run | Yrd Mat Min Active Infowar (turns) . | . . . Robot Analysis Total 1 | . 1 . Derelict Logs Recovered 1 | . . 1 Drone Launches . | . . . Drone Recoveries . | . . . Exploration | -11 -10 -10 ------------- Run | Yrd Mat Min Turns Passed 1298 | . 819 479 Spaces Moved 763 | 1 524 238 Core . | . . . Treads 213 | . . 213 Legs 550 | 1 524 25 Wheels . | . . . Hover . | . . . Flight . | . . . Fastest Speed 120 | 120 120 120 Average Speed 131 | 120 120 155 Slowest Speed 160 | 120 120 160 Overloaded Moves . | . . . Propulsion Burnouts . | . . . Robots Hopped . | . . . Potential Cave-ins . | . . . Cave-ins Triggered . | . . . Exploration Rate (%) 50 | 2 87 62 Regions Visited 2 Branch Regions 1 Pre-discovered Areas . | . . . Known Exits Taken . | . . . Unknown Exits Taken 2 | 1 1 . Scrap Searched . | . . . Spaces Dug . | . . . Terrain Destroyed . | . . . Melee . | . . . Projectile . | . . . AOE . | . . . Terrain Rammed . | . . . Walls Destroyed . | . . . Machines Disabled . | . . . Actions | -11 -10 -10 --------- Run | Yrd Mat Min Total 928 | . 632 296 Wait 54 | . 31 23 Move 761 | . 523 238 Hop . | . . . Pick Up 11 | . 10 1 Fast Attach 4 | . 3 1 Attach 5 | . . 5 Detach . | . . . Swap 4 | . 4 . Drop 12 | . 12 . Fire 76 | . 48 28 Melee . | . . . Ram . | . . . Kick 1 | . 1 . Crush . | . . . Escape Stasis . | . . . Rewire . | . . . Trap . | . . . Miscellaneous . | . . . Route ------- -11/Scrapyard -10/Materials (discovered 4 exits: [*Mat x3] / [*Min]) -10/Mines (discovered 2 exits: [*Mat] / [*Sub]) History --------- Turn | Location | Event 1 | -11/Scrapyard | Discovered new exit (range 0) 1 | -11/Scrapyard | Entered Materials 226 | -10/Materials | Discovered new exit (range 3) 310 | -10/Materials | Build established: Mutant 368 | -10/Materials | Discovered new exit (range 10) 682 | -10/Materials | Discovered new exit (range 8) 693 | -10/Materials | Discovered new exit (range 14) 759 | -10/Materials | Loaded intel: 1 repair station location 820 | -10/Materials | Entered Mines 895 | -10/Mines | Core integrity fell below 50% 931 | -10/Mines | Lost 5 parts (1p2n2w) 965 | -10/Mines | Assembled infested the area 969 | -10/Mines | Discovered new exit (range 6) 970 | -10/Mines | Assisted by a Guerilla fighting off Assembled 1178 | -10/Mines | Discovered new exit (range 9) 1274 | -10/Mines | Learned Materials interactive machine intel 1298 | -10/Mines | Core integrity fell below 20% 1299 | -10/Mines | Destroyed by D-53 Grenadier with Mini Grenade Launcher Last Messages --------------- I've been tracking a group of Assembled to figure out where they're coming from, and they're closing on this area, come on!" 00973_ U-05 Engineer lays Concrete. 00976_ U-05 Engineer builds a Wall. 00980_ U-05 Engineer lays Concrete. 01059_ K-01 Serf collects debris. 01083_ Acquired 30 matter. 01088_ Acquired 56 matter. 01091_ Acquired 3 matter. 01117_ K-01 Serf collects debris. 01178_ EXIT=FOUND 01241_ K-01 Serf collects debris. 01274_ Acquired derelict log, extracted data. Data stored: Materials interactive machine intel. 01278_ T-07 Excavator is excavating. 01294_ Lgt. Treads destroyed. 01296_ T-07 Excavator is excavating. 01296_ Assault Rifle destroyed. 01297_ T-07 Excavator is excavating. 01299_ The unstable cave ceiling collapses. Map ----- +----------------------------------------------------+ | ??????????????????????????????? | | ??????????????????????????????? | | ??????????????????????????????? | | ??????????????????????????????? | | ??????????????????????????????? | | ??????????????????????????????? | | ??????????????????????????????? | | ??????????????????????????????? | | ??????????????????????????????? | | ??????????????????????????????? | | ??????????????????????????????? | | ??????????????????????????????? | | ??????????????????????????????? | | ????????###???????????????????? | | ???????? ##???##????????????#? | | ???????? ##? ????????????? ? | | ???????? ## #????????????? ? | | ???????? #????????????# # | | ???????? dd ???#?????????# # | | ???????? ???? ?????????# # | | ???##### #????? #????????# # | | ??## #?????? #????????# # | | ?## ##?????# #????????# # | | ?# #?????# #???????## # | | ?# #?????# #??????## | | ?# @ ##??### #??????# | | ?# #??# #??????# | | ?## #??# ##?????# | | ??# # # #??# #?????# | | ??## # ## #### ##???## | | ???## ## ## ##### | | ???# #### ## ## | | ??# ??# | | ??# t #?#### | | ??## t #????## ### | | ???### ##?????### #?## | | ??????####????????## ## ##??# | | ???????????????????########???? | | ??????????????????????????????? | | ??????????????????????????????? | | ??????????????????????????????? | | ??????????????????????????????? | | ??????????????????????????????? | | ??????????????????????????????? | | ??????????????????????????????? | | | | | | | | | | | +----------------------------------------------------+ Best States ------------- Heat Dissipation 25 Energy Generation 12 Energy Capacity 265 Matter Stores 300 Matter Capacity 300 Sight Range 16 Terrain Scan Density 10 Evasion (%) 55 Targeting Accuracy 6 Recoil Reduction 2 Item Schematics ----------------- None Robot Schematics ------------------ None Fabricated ------------ Nothing Repaired ---------- Nothing Alien Tech Used ----------------- None Achievements -------------- None Challenges ------------ None Game ------ Seed CloakingCompanionBallwheel Manual? 0 Play Time 00:13:25 Cumulative 212.5 hours Start 2025.07.19 @ 20:09:00 End 2025.07.19 @ 20:21:01 Sessions 1 Manual Loads 0 Difficulty Rogue Special Mode None Game No. 141 Rogue 141 Adventurer 0 Explorer 0 Win Type - Total 16 Types 8/0/3/5/0/0/0/0/0/0 Lore% 71 Gallery% 63 Achievement% 62 Wizard Run 0 Options --------- Layout 0 ASCII 0 Keyboard 1 Movement Numpad Keybinds 0 Fullscreen 1 Font 36/Proggy Map View 76x50 Zoom Use 0% Tactical HUD 1 Map Filters NONE Filters NONE Steam 1 RUN: eae14467-eccc-438d-90c0-43b9933b214b